bitfinex-derivatives/quotes_BTCF0:USTF0_20241029
["timestamp","ask_amount","ask_price","bid_price","bid_amount"]
[1730226029224,0.068519,72976.0,72972.0,0.06876]
[1730226029427,0.06852,72974.0,72972.0,0.06876]
[1730226029731,0.06852,72974.0,72973.0,0.07057641]
[1730226029926,0.068518,72977.0,72975.0,0.06852]
[1730226030130,0.3608,72976.0,72975.0,0.13185566]
[1730226030330,0.3608,72976.0,72975.0,0.20037566]
[1730226031725,0.3608,72976.0,72973.0,0.07057641]
[1730226031726,0.06852,72974.0,72973.0,0.07057641]
[1730226032024,0.10207632,72974.0,72973.0,0.07057641]
[1730226032224,0.07561722,72974.0,72970.0,0.01952598]
[1730226032428,0.3608,72976.0,72973.0,0.13185566]
[1730226032635,0.3608,72976.0,72975.0,0.06852]
[1730226032933,0.4364191,72976.0,72975.0,0.06852]
[1730226033125,0.5049381,72976.0,72975.0,0.06852]
[1730226033625,0.50493875,72976.0,72975.0,0.06852]
[1730226034233,0.50493875,72976.0,72975.0,0.07052]
[1730226036336,0.50493902,72976.0,72975.0,0.002]
[1730226036538,0.50493902,72976.0,72975.0,0.07052]
[1730226037437,0.48557069,72976.0,72975.0,0.07052]
[1730226037736,0.07562002,72976.0,72975.0,0.07052]
[1730226038734,0.068518,72977.0,72976.0,0.068519]
[1730226039535,0.3608,72978.0,72975.0,0.002]
[1730226039830,0.3608,72978.0,72975.0,0.1232274]
[1730226040136,0.068519,72976.0,72975.0,0.1232274]
[1730226040833,0.068519,72976.0,72975.0,0.068519]
[1730226041135,0.068519,72976.0,72975.0,0.12322632]
[1730226041332,0.163412,72983.0,72975.0,0.12322632]
[1730226041333,0.3608,72993.0,72975.0,0.61588047]
[1730226041641,1.5,72984.0,72983.0,0.25506452]
[1730226041931,1.5,72984.0,72983.0,0.20036766]
[1730226042236,0.3608,72993.0,72991.0,0.068505]
[1730226042436,0.3608,72993.0,72992.0,0.068504]
[1730226042731,0.3608,72993.0,72992.0,0.20035966]
[1730226042931,0.3608,72993.0,72992.0,0.25505283]
[1730226043337,0.3608,72993.0,72992.0,0.12319717]
[1730226043530,0.49265566,72993.0,72992.0,0.068504]
[1730226043726,0.49365566,72993.0,72992.0,0.068504]
[1730226043934,0.49465566,72993.0,72992.0,0.068504]
[1730226044130,0.49465566,72993.0,72990.0,0.05469317]
[1730226044330,0.068511,72984.0,72983.0,0.04101664]
[1730226044633,0.068511,72984.0,72980.0,0.10953938]
[1730226044634,0.3608,72984.0,72980.0,0.10953938]
[1730226044838,0.56116966,72981.0,72980.0,0.10953938]
[1730226045033,0.068515,72980.0,72979.0,0.04102438]
[1730226045239,1.50072,72981.0,72980.0,0.068515]
[1730226045436,1.5,72981.0,72980.0,0.1232038]
[1730226045646,1.5,72981.0,72980.0,0.068515]
[1730226046131,1.5,72981.0,72980.0,0.1232038]
[1730226046630,1.5,72981.0,72980.0,0.12320778]
[1730226046827,1.5,72981.0,72980.0,0.068515]
[1730226048137,0.3608,72983.0,72982.0,0.068513]
[1730226048341,0.429312,72983.0,72982.0,0.068513]
[1730226048535,1.63185566,72983.0,72982.0,0.068513]
[1730226049137,1.5,72983.0,72982.0,0.068513]
[1730226049739,0.00205591,72995.0,72994.0,0.068502]
[1730226050444,0.00205591,72995.0,72994.0,0.170602]
[1730226051045,0.00205591,72995.0,72983.0,0.04070898]
[1730226051046,0.00305591,72995.0,72983.0,0.04070898]
[1730226051233,0.00305591,72995.0,72965.0,0.40883813]
[1730226051234,0.85345566,72984.0,72979.0,0.04070898]
[1730226051438,0.85345566,72984.0,72975.0,0.00205563]
[1730226051737,0.13185566,72980.0,72979.0,0.068516]
[1730226052037,0.13185566,72980.0,72979.0,0.169236]
[1730226052248,0.72232,72984.0,72983.0,0.068512]
[1730226052440,0.7216,72984.0,72983.0,0.068512]
[1730226052639,2.2216,72984.0,72983.0,0.068512]
[1730226053545,1.8608,72984.0,72983.0,0.068512]
[1730226053946,1.8618,72984.0,72979.0,0.169236]
[1730226054346,0.13185566,72980.0,72979.0,0.068516]
[1730226054648,0.13185566,72980.0,72979.0,0.10072]
[1730226055348,0.13185566,72980.0,72977.0,0.0986]
[1730226055552,0.13185566,72980.0,72978.0,0.10072]
[1730226056036,1.86252,72984.0,72980.0,0.068514]
[1730226056240,1.86252,72984.0,72978.0,0.10072]
[1730226056241,1.501,72984.0,72978.0,0.10072]
[1730226056539,1.501,72984.0,72982.0,0.068512]
[1730226057443,1.5,72984.0,72982.0,0.068512]
[1730226058051,1.501,72984.0,72982.0,0.068512]
[1730226058241,0.068512,72983.0,72982.0,0.068512]
[1730226059638,0.00272,72984.0,72983.0,0.068512]
[1730226059842,0.002,72984.0,72983.0,0.068512]
[1730226060754,0.001,72984.0,72983.0,0.068512]
[1730226060948,0.002,72984.0,72983.0,0.068512]
[1730226061344,0.001,72984.0,72983.0,0.068512]
[1730226061545,1.5,72994.0,72983.0,0.41104]
[1730226061740,1.5,72994.0,72993.0,0.20035866]
[1730226061741,1.50084,72994.0,72993.0,0.20035866]
[1730226061940,1.5,72994.0,72993.0,0.39326716]
[1730226062656,0.068492,73004.0,72993.0,0.42296416]
[1730226062953,0.3608,73006.0,73000.0,0.13185566]
[1730226062954,0.068491,73005.0,73000.0,0.13185566]
[1730226063165,0.068494,73003.0,73000.0,0.13185566]
[1730226063546,0.13185566,73001.0,72993.0,0.24883576]
[1730226063749,0.13185566,72995.0,72994.0,0.26121754]
[1730226063954,0.13185566,72998.0,72994.0,0.19271654]
[1730226064164,0.13185566,72998.0,72997.0,0.068499]
[1730226064350,0.3608,72999.0,72994.0,0.10068]
[1730226064546,0.3608,72999.0,72998.0,0.068498]
[1730226064747,0.49265566,72999.0,72995.0,0.068501]
[1730226064954,0.068499,72997.0,72995.0,0.30103666]
[1730226065152,0.0685,72996.0,72995.0,0.13185566]
[1730226065847,0.0685,72996.0,72993.0,0.0982]
[1730226066160,0.3608,72999.0,72993.0,0.0982]
[1730226066161,0.068502,72994.0,72993.0,0.0982]
[1730226066551,0.068502,72994.0,72993.0,0.166703]
[1730226066752,0.3608,72999.0,72993.0,0.0982]
[1730226066953,0.0685,72996.0,72994.0,0.20035666]
[1730226067153,0.0685,72996.0,72995.0,0.068501]
[1730226067561,0.3608,72999.0,72994.0,0.13185566]
[1730226067755,0.0685,72996.0,72994.0,0.20035666]
[1730226068268,0.0685,72996.0,72995.0,0.068501]
[1730226068756,0.3608,72999.0,72998.0,0.068498]
[1730226068957,0.3608,72999.0,72994.0,0.13185566]
[1730226068958,0.48823977,72999.0,72994.0,0.09067312]
[1730226069155,0.0685,72997.0,72996.0,0.068499]
[1730226069359,0.1458031,72997.0,72996.0,0.068499]
[1730226070763,0.1458031,72997.0,72992.0,0.01953917]
[1730226070764,0.068505,72993.0,72992.0,0.068503]
[1730226070956,0.068507,72990.0,72989.0,0.068506]
[1730226071257,0.1458101,72990.0,72989.0,0.068506]
[1730226072257,0.1458101,72990.0,72986.0,0.13185566]
[1730226072258,0.07589739,72990.0,72986.0,0.13185566]
[1730226072452,0.07589917,72989.0,72988.0,0.13185566]
[1730226073360,0.07589917,72989.0,72988.0,0.20036266]
[1730226073762,0.14440517,72989.0,72988.0,0.20036266]
[1730226073960,0.07589917,72989.0,72988.0,0.20036266]
[1730226074559,0.07589917,72989.0,72984.0,0.13185566]
[1730226074762,0.3608,72987.0,72986.0,0.068509]
[1730226074966,0.43669917,72987.0,72986.0,0.20036466]
[1730226075967,0.43769917,72987.0,72986.0,0.20036466]
[1730226076862,0.3618,72987.0,72986.0,0.20036466]
[1730226077568,0.001,72987.0,72986.0,0.20036466]
[1730226077766,0.001,72987.0,72986.0,0.26870097]
[1730226077961,0.001,72987.0,72986.0,0.20036466]
[1730226078158,4.89e-05,72995.0,72994.0,0.068502]
[1730226079462,4.89e-05,72995.0,72994.0,0.169182]
[1730226080563,0.068503,72994.0,72993.0,0.068502]
[1730226080770,0.3618489,72995.0,72988.0,0.13185566]
[1730226080965,0.3618489,72995.0,72994.0,0.068502]
[1730226082069,0.3608489,72995.0,72994.0,0.068502]
[1730226083167,0.4293499,72995.0,72994.0,0.068502]
[1730226083670,0.4293499,72995.0,72990.0,0.068504]
[1730226083671,0.068506,72991.0,72990.0,0.068504]
[1730226083985,0.068514,72983.0,72982.0,0.06851]
[1730226084278,0.56885915,72983.0,72975.0,0.00205563]
[1730226084464,0.068518,72979.0,72978.0,0.068513]
[1730226084964,0.11057375,72979.0,72978.0,0.068513]
[1730226085156,0.07620349,72979.0,72978.0,0.068513]
[1730226085769,0.14437442,72979.0,72978.0,0.068513]
[1730226086767,0.07685842,72979.0,72978.0,0.068513]
[1730226087274,0.07685842,72979.0,72978.0,0.20036866]
[1730226089262,0.001,72979.0,72978.0,0.33222432]
[1730226089471,0.001,72979.0,72978.0,0.52252432]
[1730226090373,1.5,72993.0,72978.0,0.39066866]
[1730226090678,0.03441438,72992.0,72991.0,0.068505]
[1730226090967,0.07646734,72992.0,72991.0,0.068505]
[1730226091365,0.03441438,72992.0,72991.0,0.068505]
[1730226091968,0.00072,72994.0,72993.0,0.068503]
[1730226092171,0.3608489,72995.0,72994.0,0.068502]
[1730226092370,0.3608489,72995.0,72994.0,0.28985228]
[1730226093467,4.89e-05,72995.0,72994.0,0.39616067]
[1730226093971,0.0010489,72995.0,72994.0,0.39616067]
[1730226094870,0.0010489,72995.0,72994.0,0.39573753]
[1730226095275,0.0010489,72995.0,72994.0,0.26388187]
[1730226095475,0.0010489,72995.0,72994.0,0.28343144]
[1730226095779,0.0010489,72995.0,72994.0,0.17718628]
[1730226099077,0.0010489,72995.0,72994.0,0.08805157]
[1730226099471,0.3618489,72995.0,72980.0,0.068514]
[1730226099680,0.13185566,72985.0,72980.0,0.0196765]
[1730226099978,0.13185566,72985.0,72984.0,0.068511]
[1730226100176,1.63185566,72985.0,72984.0,0.068511]
[1730226100379,1.5,72985.0,72984.0,0.068511]
[1730226100977,1.501,72985.0,72984.0,0.068511]
[1730226102672,1.501,72985.0,72977.0,0.01972782]
[1730226102673,1.63285566,72985.0,72977.0,0.01972782]
[1730226102875,0.3608,72979.0,72978.0,0.068517]
[1730226103583,0.429316,72979.0,72978.0,0.068517]
[1730226103882,0.3608,72979.0,72978.0,0.068517]
[1730226104582,0.3618,72979.0,72978.0,0.068517]
[1730226107779,0.430316,72979.0,72978.0,0.068517]
[1730226108583,0.3618,72979.0,72978.0,0.068517]
[1730226110384,0.001,72979.0,72978.0,0.068517]
[1730226112686,1.5,72985.0,72984.0,0.068511]
[1730226112879,1.5,72985.0,72984.0,0.20036666]
[1730226113989,1.5,72985.0,72984.0,0.15874345]
[1730226114182,1.5,72985.0,72984.0,0.068511]
[1730226115382,1.501,72985.0,72984.0,0.068511]
[1730226116589,1.5,72985.0,72984.0,0.068511]
[1730226116788,1.501,72985.0,72984.0,0.068511]
[1730226117085,0.520807,72988.0,72984.0,0.068511]
[1730226117279,0.20036566,72985.0,72984.0,0.08821608]
[1730226117584,1.70036566,72985.0,72984.0,0.06851]
[1730226117895,1.63185566,72985.0,72984.0,0.06851]
[1730226118088,1.70036566,72985.0,72984.0,0.06851]
[1730226118499,1.63185566,72985.0,72984.0,0.06851]
[1730226118793,1.63285566,72985.0,72984.0,0.06851]
[1730226118993,1.63285566,72985.0,72980.0,0.068312]
[1730226119182,0.49265566,72981.0,72980.0,0.136827]
[1730226120292,0.3608,72981.0,72980.0,0.136827]
[1730226120800,0.3618,72981.0,72980.0,0.15620139]
[1730226121685,0.001,72981.0,72980.0,0.08788939]
[1730226122683,0.3608,72988.0,72987.0,0.068508]
[1730226124093,0.3618,72988.0,72987.0,0.068508]
[1730226125190,0.3618,72988.0,72987.0,0.20036366]
[1730226125391,0.001,72988.0,72987.0,0.20036366]
[1730226125792,4.89e-05,72995.0,72994.0,0.068502]
[1730226126097,4.89e-05,72995.0,72994.0,0.20035766]
[1730226127099,4.89e-05,72995.0,72994.0,0.30099766]
[1730226127292,0.0010489,72995.0,72994.0,0.30099766]
[1730226128893,0.0010489,72995.0,72994.0,0.32077076]
[1730226132497,0.0010489,72995.0,72994.0,0.22013076]
[1730226132792,0.0010489,72995.0,72994.0,0.32073076]
[1730226134097,0.0010489,72995.0,72994.0,0.22013076]
[1730226134295,0.0010489,72995.0,72994.0,0.1888751]
[1730226134602,0.0010489,72995.0,72994.0,0.0882751]
[1730226135501,0.13290456,72995.0,72994.0,0.0197731]
[1730226135702,0.20140556,72995.0,72987.0,0.3608]
[1730226135904,0.20140556,72995.0,72992.0,0.068503]
[1730226136897,0.0010489,72995.0,72994.0,0.068502]
[1730226137092,4.89e-05,72995.0,72994.0,0.068502]
[1730226137292,0.0010489,72995.0,72994.0,0.068502]
[1730226137694,0.0695499,72995.0,72994.0,0.068502]
[1730226138390,0.0010489,72995.0,72994.0,0.068502]
[1730226138595,0.0695499,72995.0,72994.0,0.068502]
[1730226140295,0.0010489,72995.0,72994.0,0.068502]
[1730226141906,0.0010489,72995.0,72994.0,0.56115766]
[1730226142100,0.001,72995.0,72994.0,0.65275766]
[1730226143101,0.001,72995.0,72994.0,0.67293083]
[1730226143405,0.3608,73005.0,73004.0,0.068492]
[1730226144505,0.3608,73005.0,73004.0,0.06844317]
[1730226144897,0.3618,73005.0,73004.0,0.06844317]
[1730226145401,0.3618,73005.0,73004.0,0.13678327]
[1730226145713,0.3618,73005.0,73004.0,0.06844317]
[1730226145893,0.3618,73005.0,73004.0,0.22627088]
[1730226146096,0.3618,73005.0,73004.0,0.15793078]
[1730226147206,0.36340347,73005.0,73004.0,0.15793078]
[1730226148502,0.00260347,73005.0,73004.0,0.15793078]
[1730226149005,0.00260347,73005.0,73004.0,0.35487222]
[1730226149715,0.00260347,73005.0,73004.0,0.45547222]
[1730226150597,0.00260347,73005.0,73004.0,0.53726378]
[1730226150797,0.00260347,73005.0,73004.0,0.53725939]
[1730226151005,0.00160347,73005.0,73004.0,0.45547222]
[1730226151312,0.00260347,73005.0,73004.0,0.45547222]
[1730226151501,0.00260347,73005.0,73004.0,0.53722878]
[1730226151699,0.00260347,73005.0,73004.0,0.36598461]
[1730226152815,0.04163669,73005.0,73004.0,0.36598461]
[1730226153014,0.04163669,73005.0,73004.0,0.26538461]
[1730226153316,0.00260347,73005.0,73004.0,0.36594461]
[1730226153507,0.04161231,73005.0,73004.0,0.36594461]
[1730226154911,0.00260347,73005.0,73004.0,0.36594461]
[1730226156930,0.00260347,73005.0,73004.0,0.26538461]
[1730226157213,0.00260347,73005.0,73004.0,0.36594461]
[1730226159109,0.00260347,73005.0,73004.0,0.18874461]
[1730226159813,0.00260347,73005.0,73004.0,0.17741627]
[1730226160421,0.00260347,73005.0,73004.0,0.15632511]
[1730226160728,0.00260347,73005.0,73004.0,0.24558811]
[1730226160915,0.00260347,73005.0,73004.0,0.15632302]
[1730226161627,0.00260347,73005.0,73004.0,0.08818461]
[1730226162421,0.0020545,73020.0,73019.0,0.068478]
[1730226164316,0.0030545,73020.0,73019.0,0.068478]
[1730226165226,0.0030545,73020.0,73019.0,0.20033366]
[1730226165416,0.001,73020.0,73019.0,0.20033366]
[1730226165826,0.001,73020.0,73019.0,0.32080973]
[1730226167227,0.001,73020.0,73019.0,0.18895407]
[1730226167436,0.001,73020.0,73019.0,0.08839407]
[1730226173233,0.069477,73020.0,73019.0,0.01991607]
[1730226173429,0.001,73020.0,73016.0,0.04089589]
[1730226173727,0.56113566,73017.0,73014.0,0.10937889]
[1730226173921,0.56113566,73017.0,73014.0,0.04089589]
[1730226174120,0.49265566,73017.0,73014.0,0.04089589]
[1730226174332,0.068482,73015.0,73012.0,0.10938089]
[1730226174528,0.068482,73015.0,73013.0,0.04089589]
[1730226174733,0.0826556,73014.0,73004.0,0.02147592]
[1730226174933,0.0826556,73013.0,73004.0,0.00205455]
[1730226175120,0.0826556,73012.0,73011.0,0.068486]
[1730226175323,0.0826556,73012.0,73004.0,0.00205455]
[1730226175324,0.21451126,73012.0,73004.0,0.00205455]
[1730226175532,0.13185566,73007.0,73006.0,0.06849]
[1730226175828,0.21451126,73007.0,73006.0,0.06849]
[1730226176021,0.26575602,73007.0,73006.0,0.06849]
[1730226176534,0.26448323,73007.0,73006.0,0.06849]
[1730226176928,0.13262757,73007.0,73006.0,0.06849]
[1730226177133,0.08138281,73007.0,73006.0,0.06849]
[1730226177728,0.08238281,73007.0,73006.0,0.06849]
[1730226181833,0.001,73007.0,73006.0,0.22649516]
[1730226182539,0.001,73007.0,73006.0,0.13660724]
[1730226185534,0.001,73007.0,73006.0,0.22637033]
[1730226186234,0.001,73007.0,73006.0,0.15825309]
[1730226186935,0.001,73007.0,73006.0,0.29010875]
[1730226188337,0.3608,73017.0,73006.0,0.22161875]
[1730226188529,0.47940407,73026.0,73023.0,0.068474]
[1730226188734,0.47940407,73026.0,73024.0,0.068474]
[1730226188934,0.429273,73025.0,73024.0,0.068474]
[1730226191041,0.06848,73017.0,73016.0,0.1093506]
[1730226191233,0.56113566,73017.0,73016.0,0.068479]
[1730226191639,2.06113566,73017.0,73016.0,0.068479]
[1730226193737,1.99265566,73017.0,73016.0,0.068479]
[1730226193946,1.8608,73017.0,73016.0,0.068479]
[1730226194155,1.5,73017.0,73016.0,0.159679]
[1730226196139,1.63185566,73017.0,73016.0,0.159679]
[1730226196753,1.71338343,73017.0,73016.0,0.159679]
[1730226197939,1.76490313,73017.0,73016.0,0.159679]
[1730226198344,1.71355144,73017.0,73016.0,0.159679]
[1730226198549,1.76499302,73017.0,73016.0,0.159679]
[1730226199250,1.71355144,73017.0,73016.0,0.159679]
[1730226199642,1.7647875,73017.0,73016.0,0.159679]
[1730226200238,1.71355144,73017.0,73016.0,0.159679]
[1730226200641,1.58169578,73017.0,73016.0,0.159679]
[1730226201054,1.58169578,73017.0,73016.0,0.29153466]
[1730226201055,0.08169578,73017.0,73016.0,0.29153466]
[1730226201354,0.08169578,73017.0,73016.0,0.38133466]
[1730226201851,0.08169578,73017.0,73016.0,0.249479]
[1730226202944,0.08208023,73017.0,73016.0,0.249481]
[1730226204945,0.3608,73018.0,73017.0,0.06848]
[1730226206455,1.8608,73018.0,73017.0,0.06848]
[1730226207155,1.5,73018.0,73017.0,0.06848]
[1730226207758,1.568479,73018.0,73017.0,0.06848]
[1730226208258,1.929279,73018.0,73017.0,0.06848]
[1730226208453,1.8608,73018.0,73017.0,0.06848]
[1730226209959,1.8608,73018.0,73017.0,0.10937959]
[1730226211753,1.929279,73018.0,73017.0,0.06848]
[1730226212051,1.967443,73018.0,73017.0,0.06848]
[1730226213550,1.898964,73018.0,73017.0,0.06848]
[1730226214156,0.398964,73018.0,73017.0,0.06848]
[1730226215456,0.038164,73018.0,73017.0,0.06848]
[1730226215755,0.068481,73016.0,73011.0,0.068485]
[1730226215954,0.068483,73014.0,73007.0,0.3608]
[1730226216150,0.068483,73014.0,73013.0,0.068484]
[1730226216151,0.20033866,73014.0,73013.0,0.068484]
[1730226216354,1.78170324,73014.0,73013.0,0.068484]
[1730226216551,1.78170324,73014.0,73003.0,0.22435566]
[1730226216552,1.71283639,73014.0,73010.0,0.068486]
[1730226216751,0.3608,73012.0,73010.0,0.068486]
[1730226216955,0.08098073,73011.0,73010.0,0.068487]
[1730226217362,0.03786432,73011.0,73010.0,0.068487]
[1730226218455,0.03786432,73011.0,73010.0,0.1548517]
[1730226218657,0.3608,73021.0,73010.0,0.1548517]
[1730226218859,0.3608,73021.0,73020.0,0.068477]
[1730226219057,0.40306028,73021.0,73020.0,0.068477]
[1730226219953,0.5156407,73021.0,73020.0,0.15955898]
[1730226220560,0.429276,73021.0,73020.0,0.15955898]
[1730226223164,0.3608,73021.0,73020.0,0.15955898]
[1730226224866,0.3608,73021.0,73020.0,0.17934598]
[1730226225564,0.429276,73021.0,73020.0,0.17934598]
[1730226226565,0.3608,73021.0,73020.0,0.17934598]
[1730226226859,0.45259913,73021.0,73020.0,0.088264]
[1730226227055,0.48953331,73021.0,73020.0,0.088264]
[1730226227565,0.48963824,73021.0,73020.0,0.088264]
[1730226228070,0.48963093,73021.0,73020.0,0.088264]
[1730226230370,0.43979144,73021.0,73020.0,0.088264]
[1730226230664,0.43971052,73021.0,73020.0,0.088264]
[1730226232765,0.07891052,73021.0,73020.0,0.088264]
[1730226233068,0.07891052,73021.0,73020.0,0.21987568]
[1730226234161,0.07891052,73021.0,73020.0,0.32027568]
[1730226235072,0.13161168,73032.0,73025.0,0.068473]
[1730226235258,0.13161168,73032.0,73025.0,0.1094332]
[1730226235570,0.13161168,73032.0,73025.0,0.068473]
[1730226235780,0.3608,73035.0,73025.0,0.20008468]
[1730226235968,0.49241168,73035.0,73025.0,0.20008468]
[1730226236168,0.13161168,73031.0,73025.0,0.20008468]
[1730226238574,0.3608,73035.0,73025.0,0.20008468]
[1730226238575,0.49241168,73035.0,73025.0,0.20008468]
[1730226239080,0.13161168,73031.0,73025.0,0.25469829]
[1730226239769,0.49241168,73035.0,73025.0,0.25469829]
[1730226239973,0.02391308,73047.0,73046.0,0.068453]
[1730226240277,0.02391308,73047.0,73046.0,0.14117428]
[1730226240573,0.02391308,73047.0,73046.0,0.068453]
[1730226242975,0.02391308,73047.0,73046.0,0.136753]
[1730226243370,0.15552476,73047.0,73046.0,0.068453]
[1730226243973,0.56620476,73047.0,73020.0,0.3608]
[1730226244179,0.3608,73032.0,73031.0,0.07052029]
[1730226244485,1.5,73032.0,73031.0,0.07052029]
[1730226244867,1.5,73032.0,73031.0,0.09042025]
[1730226247871,0.0674,73034.0,73031.0,0.02195325]
[1730226248078,0.0674,73034.0,73033.0,0.068465]
[1730226248382,1.5674,73034.0,73033.0,0.068465]
[1730226248879,1.635864,73034.0,73033.0,0.068465]
[1730226250074,1.6728833,73034.0,73033.0,0.068465]
[1730226250773,1.6728833,73034.0,73031.0,0.02195325]
[1730226250774,0.068466,73032.0,73031.0,0.02195325]
[1730226250967,0.068466,73032.0,73031.0,0.09042025]
[1730226250968,0.1054853,73032.0,73031.0,0.09042025]
[1730226251370,1.6054853,73032.0,73031.0,0.09042025]
[1730226251873,1.60518652,73032.0,73031.0,0.09042025]
[1730226252377,1.64721461,73032.0,73031.0,0.09042025]
[1730226254881,1.60518652,73032.0,73031.0,0.09042025]
[1730226255082,1.64721454,73032.0,73031.0,0.09042025]
[1730226255684,1.64721454,73032.0,73031.0,0.07052029]
[1730226255885,1.60518652,73032.0,73031.0,0.07052029]
[1730226256285,1.94752052,73032.0,73026.0,0.3608]
[1730226256478,0.13161168,73027.0,73026.0,0.3608]
[1730226256783,0.1683322,73027.0,73026.0,0.3608]
[1730226257173,0.00072,73032.0,73031.0,0.068467]
[1730226257475,0.429261,73038.0,73036.0,0.068462]
[1730226257679,0.3608,73038.0,73037.0,0.068461]
[1730226258572,0.06846,73039.0,73038.0,0.06846]
[1730226261382,1.63233168,73041.0,73040.0,0.068459]
[1730226261589,1.63161168,73041.0,73040.0,0.10934981]
[1730226261787,0.13161168,73041.0,73040.0,0.429259]
[1730226261991,0.49241168,73052.0,73043.0,0.068456]
[1730226262286,0.140353,73046.0,73045.0,0.068454]
[1730226262482,0.63276468,73046.0,73045.0,0.068454]
[1730226262790,0.63276468,73046.0,73043.0,0.0408915]
[1730226262791,0.068455,73044.0,73043.0,0.0408915]
[1730226263304,0.068456,73043.0,73042.0,0.0408915]
[1730226263587,0.49241168,73046.0,73045.0,0.068454]
[1730226263780,0.56086468,73046.0,73045.0,0.068454]
[1730226264184,0.63845176,73046.0,73045.0,0.068454]
[1730226265590,0.63839163,73046.0,73045.0,0.068454]
[1730226267288,0.56993863,73046.0,73045.0,0.068454]
[1730226267889,2.06993863,73046.0,73045.0,0.068454]
[1730226268386,2.13839163,73046.0,73045.0,0.068454]
[1730226270386,2.1373637,73046.0,73045.0,0.068454]
[1730226270895,2.18646738,73046.0,73045.0,0.068454]
[1730226271096,2.1373637,73046.0,73045.0,0.068454]
[1730226272200,2.06086468,73046.0,73045.0,0.03985946]
[1730226278507,2.01560619,73046.0,73045.0,0.03985946]
[1730226280398,0.51560619,73046.0,73045.0,0.03985946]
[1730226282205,0.02391308,73047.0,73044.0,0.12724469]
[1730226282411,0.02391308,73047.0,73046.0,0.068453]
[1730226283203,0.17871927,73047.0,73046.0,0.068453]
[1730226285900,0.068456,73044.0,73043.0,0.068455]
[1730226286104,2.01560919,73044.0,73043.0,0.068455]
[1730226286910,1.94715319,73044.0,73043.0,0.068455]
[1730226287202,1.94715319,73044.0,73043.0,0.04089758]
[1730226287203,2.1402584,73044.0,73043.0,0.04089758]
[1730226288203,0.6402584,73044.0,73043.0,0.04089758]
[1730226288707,0.59115591,73044.0,73043.0,0.04089758]
[1730226289602,0.23035591,73044.0,73043.0,0.04089758]
[1730226290305,0.16190091,73044.0,73043.0,0.04089758]
[1730226290503,0.23035591,73044.0,73043.0,0.04089758]
[1730226291410,0.23035591,73044.0,73035.0,0.3608]
[1730226291414,0.16190091,73044.0,73035.0,0.3608]
[1730226291705,0.3608,73046.0,73039.0,0.068459]
[1730226291706,0.068462,73040.0,73039.0,0.068459]
[1730226291907,1.64400972,73040.0,73039.0,0.068459]
[1730226292102,1.6931136,73040.0,73039.0,0.068459]
[1730226293403,1.77946679,73040.0,73039.0,0.068459]
[1730226294313,1.65481519,73040.0,73039.0,0.068459]
[1730226296313,1.58635319,73040.0,73039.0,0.068459]
[1730226296715,1.65481219,73040.0,73039.0,0.068459]
[1730226297308,0.15481219,73040.0,73039.0,0.068459]
[1730226297716,1.5,73040.0,73039.0,0.068459]
[1730226297911,0.08635319,73043.0,73042.0,0.068457]
[1730226298409,1.58635319,73043.0,73042.0,0.068457]
[1730226298610,0.08635319,73043.0,73042.0,0.068457]
[1730226299511,0.15480919,73043.0,73042.0,0.068457]
[1730226302408,0.068458,73041.0,73040.0,0.068457]
[1730226302712,0.23036113,73041.0,73040.0,0.068457]
[1730226302912,1.77946507,73041.0,73040.0,0.068457]
[1730226303118,1.69311188,73041.0,73040.0,0.068457]
[1730226303511,1.77946507,73041.0,73040.0,0.068457]
[1730226303914,1.70391513,73041.0,73040.0,0.068457]
[1730226305321,1.54910394,73041.0,73040.0,0.068457]
[1730226305515,1.70391513,73041.0,73040.0,0.068457]
[1730226306412,1.79026832,73041.0,73040.0,0.068457]
[1730226307915,1.70391513,73041.0,73040.0,0.068457]
[1730226308117,1.79026832,73041.0,73040.0,0.068457]
[1730226309019,1.63545713,73041.0,73040.0,0.068457]
[1730226309417,1.58635319,73041.0,73040.0,0.068457]
[1730226310923,1.65481119,73041.0,73040.0,0.068457]
[1730226313026,1.74116438,73041.0,73040.0,0.068457]
[1730226313326,1.65481119,73041.0,73040.0,0.068457]
[1730226314123,0.06846,73038.0,73037.0,0.05463004]
[1730226314325,0.068467,73031.0,73030.0,0.13675555]
[1730226314515,0.24117338,73031.0,73030.0,0.13675555]
[1730226314824,0.068467,73031.0,73030.0,0.13675555]
[1730226315016,0.15482019,73031.0,73030.0,0.13675555]
[1730226315217,0.15482019,73031.0,73030.0,0.06828755]
[1730226315425,0.24117338,73031.0,73030.0,0.06828755]
[1730226316028,0.24117338,73031.0,73028.0,0.04098879]
[1730226316223,0.068471,73027.0,73026.0,0.04098879]
[1730226316420,0.24117738,73027.0,73026.0,0.04098879]
[1730226316731,0.068472,73026.0,73025.0,0.068473]
[1730226316922,0.130372,73026.0,73025.0,0.068473]
[1730226317424,0.617972,73026.0,73025.0,0.041043]
[1730226318622,0.69354138,73026.0,73025.0,0.041043]
[1730226319928,0.69354138,73026.0,73015.0,0.00205429]
[1730226319929,1.03586938,73026.0,73015.0,0.00205429]
[1730226320241,0.068481,73018.0,73017.0,0.068479]
[1730226320420,0.03353524,73018.0,73017.0,0.15483319]
[1730226320723,0.03379544,73025.0,73024.0,0.068474]
[1730226320919,0.0020548,73033.0,73032.0,0.068466]
[1730226321119,0.07809413,73033.0,73032.0,0.068466]
[1730226321530,0.14655913,73033.0,73032.0,0.068466]
[1730226321725,0.16444732,73033.0,73032.0,0.068466]
[1730226322729,0.23291232,73033.0,73032.0,0.068466]
[1730226323221,0.16444732,73033.0,73018.0,0.068479]
[1730226323426,0.08635319,73019.0,73018.0,0.068479]
[1730226323625,0.23087478,73019.0,73018.0,0.068479]
[1730226324126,0.16239678,73019.0,73018.0,0.068479]
[1730226324324,0.23087478,73019.0,73018.0,0.068479]
[1730226324631,0.15483119,73019.0,73018.0,0.068479]
[1730226325017,0.15483119,73019.0,73018.0,0.08850101]
[1730226326638,0.20009871,73019.0,73018.0,0.08850101]
[1730226329633,0.13162071,73019.0,73018.0,0.068479]
[1730226330724,0.20009871,73019.0,73018.0,0.068479]
[1730226331433,1.70009871,73019.0,73018.0,0.068479]
[1730226332034,1.63162071,73019.0,73018.0,0.068479]
[1730226332527,1.70009871,73019.0,73018.0,0.068479]